bitfinex-derivatives/quotes_ETHF0:USTF0_20251012
["timestamp","ask_amount","ask_price","bid_price","bid_amount"]
[1760228711973,0.8273,3722.2,3721.8,0.48314]
[1760228712176,0.3442,3722.1,3721.8,0.82684]
[1760228712368,0.48312,3722.1,3721.7,0.00242189]
[1760228712574,0.48313,3722.0,3721.7,0.00242189]
[1760228712771,0.3442,3721.9,3721.7,0.48557189]
[1760228713476,0.3442,3721.9,3721.7,0.00242189]
[1760228713865,0.48315,3721.8,3721.7,0.00242189]
[1760228714170,0.82735,3721.8,3721.7,0.00242189]
[1760228714677,6.52046886,3721.8,3721.7,0.00242189]
[1760228715065,5.69311886,3721.8,3720.0,0.4806]
[1760228715272,0.1435,3722.0,3720.2,0.48334]
[1760228715273,0.3442,3721.6,3720.2,0.48334]
[1760228715465,0.3442,3720.6,3720.2,0.82704]
[1760228715668,0.3442,3720.6,3720.3,0.3437]
[1760228715869,0.48327,3720.9,3720.4,0.3437]
[1760228716077,0.83004252,3720.9,3720.5,0.3437]
[1760228716374,0.4833,3720.7,3720.5,0.3437]
[1760228716782,0.00257252,3720.9,3720.4,0.00203944]
[1760228716783,0.3442,3720.5,3720.4,0.00203944]
[1760228717474,0.3442,3720.5,3719.2,1.20869]
[1760228717475,0.4834,3719.9,3719.3,0.48347]
[1760228717672,0.3442,3719.9,3719.2,0.3437]
[1760228717979,0.48343,3719.7,3719.2,0.82717]
[1760228718184,0.48344,3719.6,3719.1,0.3437]
[1760228718374,0.82765,3719.5,3719.1,0.3437]
[1760228718680,0.3442,3719.6,3719.2,0.48347]
[1760228718873,0.48343,3719.7,3719.1,0.001952]
[1760228719074,0.48343,3719.7,3719.1,0.345652]
[1760228719585,0.3442,3719.9,3719.1,0.345652]
[1760228719774,0.48335,3720.3,3719.7,0.3437]
[1760228720084,0.1435,3721.0,3719.6,0.3437]
[1760228720085,0.34677252,3720.9,3719.6,0.3437]
[1760228720378,0.34677252,3720.9,3719.5,0.0738]
[1760228720379,0.3442,3720.8,3719.8,0.4834]
[1760228720875,0.48331,3720.6,3720.2,0.3437]
[1760228721080,0.00257252,3720.9,3720.2,0.3437]
[1760228721081,0.48334,3720.4,3720.2,0.3437]
[1760228721679,0.82754,3720.4,3719.9,0.48339]
[1760228721977,0.82754,3720.4,3720.0,0.3437]
[1760228722376,0.3442,3720.3,3720.0,0.82707]
[1760228722887,0.3442,3720.2,3720.0,0.3437]
[1760228723370,0.00257252,3720.9,3719.5,0.0738]
[1760228723371,0.00257252,3720.9,3720.4,0.48332]
[1760228723573,0.34677252,3720.9,3720.1,0.3437]
[1760228723774,0.00257252,3720.9,3720.1,0.3437]
[1760228723974,0.00257252,3720.9,3720.6,0.4833]
[1760228724280,0.3442,3720.8,3720.2,0.48335]
[1760228724583,0.00257252,3720.9,3720.3,0.48334]
[1760228724778,0.3442,3720.8,3719.5,0.0738]
[1760228724980,0.3442,3720.8,3719.6,0.3437]
[1760228725782,0.48336,3720.2,3720.0,0.3437]
[1760228726078,0.48336,3720.2,3719.5,0.0738]
[1760228726079,1.2082,3720.8,3719.6,0.82713]
[1760228726271,0.3442,3719.9,3719.6,0.82713]
[1760228726476,0.48343,3719.7,3719.2,0.48349]
[1760228726685,0.48344,3719.6,3719.2,0.82719]
[1760228726888,0.82764,3719.6,3719.2,0.82719]
[1760228727486,0.48344,3719.6,3719.4,0.3437]
[1760228727786,0.48344,3719.6,3719.5,0.3437]
[1760228728186,0.48341,3719.8,3719.5,0.3437]
[1760228728485,0.4877,3720.5,3719.6,0.48343]
[1760228728782,0.48339,3720.0,3719.7,0.3437]
[1760228729178,0.82759,3720.0,3719.7,0.3437]
[1760228729380,0.1435,3720.5,3719.1,0.001952]
[1760228729381,0.3442,3719.5,3719.3,0.82717]
[1760228729588,0.48344,3719.6,3719.4,0.3437]
[1760228730080,0.48339,3720.0,3719.7,0.82711]
[1760228730278,0.8276,3719.9,3719.7,0.3437]
[1760228731183,0.48347,3719.3,3719.1,0.001952]
[1760228731680,0.48341,3719.8,3719.2,0.3437]
[1760228731882,0.48341,3719.8,3719.3,0.48347]
[1760228732083,0.3442,3720.1,3719.5,0.48344]
[1760228732881,0.48335,3720.3,3719.9,0.48339]
[1760228733082,0.3442,3720.8,3720.1,0.3437]
[1760228733385,0.48329,3720.7,3720.3,0.3437]
[1760228733585,0.48326,3721.0,3720.1,0.3437]
[1760228733779,0.3442,3721.3,3720.8,0.3437]
[1760228733980,0.4832,3721.4,3720.8,0.3437]
[1760228734180,0.48318,3721.6,3720.8,0.3437]
[1760228734377,0.3442,3721.8,3720.8,5.3437]
[1760228734582,0.48317,3721.7,3721.4,0.3437]
[1760228734790,0.48314,3721.9,3721.4,0.3437]
[1760228734987,0.48315,3721.8,3721.4,0.3437]
[1760228735287,0.3556,3721.6,3721.0,0.3649]
[1760228735483,0.00259733,3721.6,3721.5,0.3649]
[1760228736190,0.00259733,3721.6,3721.2,0.48322]
[1760228736378,0.5016,3721.5,3720.8,0.3649]
[1760228736581,0.00259733,3721.6,3720.8,0.3649]
[1760228736782,0.00259733,3721.6,3720.5,0.1226]
[1760228736783,0.00259733,3721.6,3721.5,0.4387]
[1760228737788,0.3556,3722.7,3721.6,0.3649]
[1760228737980,0.48302,3722.8,3722.4,0.3649]
[1760228738183,0.83864,3722.7,3722.5,0.3649]
[1760228738383,0.48304,3722.7,3722.1,0.48311]
[1760228738584,0.3556,3721.9,3721.5,0.3649]
[1760228738889,0.00239048,3721.9,3721.8,0.3649]
[1760228739388,0.00239048,3721.9,3721.7,0.48315]
[1760228739891,0.3556,3721.8,3721.6,0.3649]
[1760228741190,0.82127,3721.6,3721.5,0.00330864]
[1760228742191,5.82127,3721.6,3721.5,0.00330864]
[1760228742386,0.48317,3721.6,3721.5,0.00330864]
[1760228743092,0.00239048,3721.9,3721.6,0.3387]
[1760228743585,0.48308,3722.4,3721.8,0.82184]
[1760228743892,0.3381,3722.2,3721.9,0.82183]
[1760228744194,0.48306,3722.5,3721.6,0.3387]
[1760228744392,0.146,3723.0,3721.6,0.3387]
[1760228744393,0.48304,3722.7,3721.6,0.3387]
[1760228744586,0.48304,3722.7,3721.5,1.34516864]
[1760228744587,0.00277678,3722.7,3722.0,0.0738]
[1760228744890,0.00277678,3722.7,3722.1,0.3387]
[1760228745287,0.00277678,3722.7,3722.0,0.0738]
[1760228745288,0.3381,3724.2,3722.6,0.0974]
[1760228745489,0.82098,3723.9,3722.9,0.5804]
[1760228745891,0.4829,3723.7,3723.1,0.48297]
[1760228746092,0.821,3723.7,3723.2,0.58036]
[1760228746295,0.3381,3723.6,3723.2,0.58036]
[1760228746490,0.3381,3723.5,3723.2,0.48296]
[1760228746689,0.3381,3723.5,3723.2,0.58036]
[1760228747196,0.00203263,3723.7,3723.5,0.48292]
[1760228747501,0.00203263,3723.7,3723.6,0.0974]
[1760228748392,0.48494263,3723.7,3722.4,0.0974]
[1760228748692,0.3381,3723.5,3723.3,0.48294]
[1760228748896,0.00203263,3723.7,3723.5,0.0974]
[1760228749396,0.00203263,3723.7,3723.4,0.48293]
[1760228749600,0.3381,3723.6,3723.4,0.48293]
[1760228749995,0.1444,3723.5,3723.0,0.48298]
[1760228750192,0.3381,3723.3,3723.0,0.48298]
[1760228750501,0.3381,3723.1,3723.0,0.48298]
[1760228750992,0.3381,3723.1,3722.6,0.0974]
[1760228751196,0.1444,3723.5,3720.8,10.08084941]
[1760228751197,0.1444,3723.5,3722.3,0.48308]
[1760228751390,0.3381,3723.4,3722.3,0.48308]
[1760228751593,0.48302,3722.8,3722.3,0.48308]
[1760228751794,0.3381,3722.6,3722.3,0.48308]
[1760228752098,0.48302,3722.8,3722.5,0.0974]
[1760228752397,0.82117,3722.4,3722.1,0.0974]
[1760228752999,0.48307,3722.4,3722.1,0.0974]
[1760228754094,0.48307,3722.4,3722.1,0.4831]
[1760228754298,0.62739,3723.0,3722.6,0.48304]
[1760228754594,0.3381,3723.3,3721.7,1.20788]
[1760228754595,0.48302,3722.9,3722.7,0.0974]
[1760228754999,0.48298,3723.1,3722.7,0.0974]
[1760228755190,0.483,3723.0,3722.7,0.0974]
[1760228755393,0.34013263,3723.7,3722.4,0.0974]
[1760228755593,0.34013263,3723.7,3723.0,0.58039]
[1760228755793,0.48295,3723.4,3723.0,0.48299]
[1760228755993,0.3381,3723.2,3723.0,0.48299]
[1760228756396,0.48294,3723.4,3722.9,0.483]
[1760228756699,0.3381,3723.1,3722.9,0.483]
[1760228757490,0.3381,3723.1,3722.5,0.48305]
[1760228757698,0.48301,3722.9,3722.7,0.0974]
[1760228757902,0.82111,3722.9,3722.6,0.48304]
[1760228758205,0.00203263,3723.7,3723.0,0.48299]
[1760228758398,0.00203263,3723.7,3723.0,0.58039]
[1760228758702,0.48296,3723.3,3723.1,0.0974]
[1760228759097,0.48292,3723.6,3723.1,0.58037]
[1760228759301,0.48293,3723.5,3723.1,0.58037]
[1760228759499,0.3381,3723.6,3723.1,0.58037]
[1760228759500,0.48295,3723.4,3723.1,0.58037]
[1760228759704,0.48296,3723.3,3723.1,0.0974]
[1760228760599,0.34013263,3723.7,3722.8,0.58041]
[1760228760600,0.1444,3723.5,3722.8,0.58041]
[1760228760900,0.1444,3723.5,3722.9,0.483]
[1760228761103,0.48297,3723.2,3722.9,0.483]
[1760228761307,0.82107,3723.2,3723.0,0.48299]
[1760228762401,0.82107,3723.2,3722.9,0.0974]
[1760228762707,0.48295,3723.4,3722.3,0.0974]
[1760228762904,0.48295,3723.4,3722.5,0.0974]
[1760228763101,0.82107,3723.2,3722.9,0.0974]
[1760228763304,0.82107,3723.2,3722.9,0.5804]
[1760228763608,0.82105,3723.4,3723.0,0.48299]
[1760228763803,0.3381,3723.4,3723.1,0.58037]
[1760228764001,0.3381,3723.4,3723.1,0.48297]
[1760228764307,0.82105,3723.4,3723.2,0.0974]
[1760228764707,0.1444,3723.5,3722.9,0.0971]
[1760228765407,0.48295,3723.4,3723.1,0.0971]
[1760228765709,0.48296,3723.3,3723.1,0.0971]
[1760228766698,0.48296,3723.3,3721.6,12.07922]
[1760228766699,0.3559,3723.2,3721.5,0.00330864]
[1760228766901,0.48304,3722.7,3722.3,0.48308]
[1760228767203,0.3559,3722.5,3722.3,0.48308]
[1760228767808,0.83896,3722.5,3722.3,0.0971]
[1760228768006,0.83896,3722.5,3721.5,0.00330864]
[1760228768007,0.3559,3722.3,3722.0,0.48312]
[1760228768207,0.3559,3722.2,3722.0,0.48312]
[1760228769204,0.48307,3722.4,3721.6,0.0971]
[1760228769205,0.3559,3722.4,3721.7,0.48316]
[1760228769406,0.1399,3722.5,3721.7,0.48316]
[1760228769602,0.62303,3722.0,3721.7,0.48316]
[1760228770313,0.3559,3721.9,3721.7,0.48316]
[1760228770909,0.62303,3722.0,3721.7,0.48316]
[1760228771211,0.62303,3722.0,3721.5,0.00330864]
[1760228771212,0.83904,3721.9,3721.5,0.48648864]
[1760228771506,0.83904,3721.9,3721.6,0.48317]
[1760228771813,0.3559,3721.9,3721.7,0.58026]
[1760228772205,0.1399,3722.0,3721.7,0.58026]
[1760228772405,0.48312,3722.1,3721.7,0.48316]
[1760228772713,0.48305,3722.6,3722.2,0.48309]
[1760228772908,0.48305,3722.6,3722.3,0.0971]
[1760228773218,0.3559,3722.9,3722.3,0.58018]
[1760228773815,0.48304,3722.7,3722.3,0.48308]
[1760228774014,0.48305,3722.6,3722.4,0.0971]
[1760228774406,0.1399,3723.0,3721.5,0.00330864]
[1760228774407,0.3559,3722.2,3721.9,0.48313]
[1760228774713,0.3559,3722.1,3721.9,0.48313]
[1760228774915,0.48309,3722.3,3721.9,0.58023]
[1760228775209,0.83899,3722.3,3721.9,0.58023]
[1760228775513,0.83899,3722.3,3722.0,0.58021]
[1760228777606,0.3559,3722.3,3722.0,0.58021]
[1760228778311,0.3559,3722.3,3722.1,0.4831]
[1760228778513,0.3559,3722.3,3722.1,0.5802]
[1760228779209,0.1399,3722.5,3722.3,0.0971]
[1760228779413,0.48308,3722.4,3721.8,0.58024]
[1760228779714,0.48308,3722.4,3721.8,0.0971]
[1760228779913,0.3559,3722.3,3722.0,0.58022]
[1760228780910,0.3559,3722.3,3722.1,0.4831]
[1760228781206,0.48308,3722.4,3722.0,0.0971]
[1760228781207,0.3559,3722.2,3722.0,0.0971]
[1760228782007,0.5003,3723.5,3721.6,2.38822605]
[1760228782314,0.5003,3723.5,3722.7,0.48302]
[1760228782315,0.483,3723.0,3722.7,0.48302]
[1760228782515,0.3559,3722.4,3721.6,0.0971]
[1760228782709,0.48309,3722.3,3721.7,0.48316]
[1760228783016,0.48313,3722.0,3721.5,0.00330864]
[1760228783208,0.48315,3721.8,3721.6,0.0971]
[1760228783911,0.83905,3721.8,3721.6,0.0971]
[1760228784110,0.1399,3722.5,3721.5,0.00330864]
[1760228784111,0.48317,3721.6,3721.5,0.00330864]
[1760228784316,0.83907,3721.6,3721.5,0.00330864]
[1760228784518,5.83907,3721.6,3721.5,0.00330864]
[1760228787411,0.83907,3721.6,3721.5,0.00330864]
[1760228787606,0.48312,3722.1,3721.6,0.48316]
[1760228787812,0.48314,3721.9,3721.7,0.0971]
[1760228788115,0.3559,3721.8,3721.5,0.10040864]
[1760228788518,0.83906,3721.8,3721.5,0.10040864]
[1760228788716,0.3559,3721.8,3721.5,0.58358864]
[1760228789018,0.3559,3721.8,3721.6,0.0971]
[1760228789311,0.48313,3722.0,3721.5,0.00330864]
[1760228789312,0.3559,3722.0,3721.5,0.00330864]
[1760228789509,0.3559,3722.0,3721.8,0.0971]
[1760228789713,0.3559,3722.0,3721.8,0.58024]
[1760228790020,0.48299,3723.1,3722.1,0.0971]
[1760228790620,0.3559,3722.8,3722.4,0.48306]
[1760228790816,0.3559,3722.7,3722.4,0.48306]
[1760228791011,0.3559,3722.7,3722.5,0.48305]
[1760228791319,0.48301,3722.9,3722.6,0.0971]
[1760228791320,0.83891,3722.9,3722.6,0.0971]
[1760228791510,1.20930263,3723.7,3722.7,0.0971]
[1760228791511,0.3559,3723.4,3722.7,0.0971]
[1760228791716,0.48293,3723.5,3722.7,0.0971]
[1760228792118,0.00203263,3723.7,3723.4,0.58003]
[1760228792318,0.3559,3723.6,3723.4,0.0971]
[1760228792822,0.48295,3723.3,3722.6,0.48304]
[1760228793015,0.3559,3723.2,3722.8,0.48301]
[1760228793316,0.3559,3723.1,3722.6,0.48304]
[1760228793518,0.48297,3723.2,3722.6,0.58014]
[1760228793709,0.3559,3723.1,3722.6,0.58014]
[1760228793912,0.3559,3723.0,3722.6,0.58014]
[1760228794217,0.3559,3723.0,3721.7,3.59610605]
[1760228794218,0.48302,3722.8,3722.3,0.48308]
[1760228794512,0.3559,3722.7,3722.0,0.0971]
[1760228794714,0.48316,3721.7,3721.5,0.00330864]
[1760228794918,0.3561,3721.6,3721.5,0.00330864]
[1760228796111,0.1365,3722.0,3721.5,0.00330864]
[1760228796307,0.48316,3721.7,3721.5,0.00330864]
[1760228796513,0.3561,3721.9,3721.5,0.48648864]
[1760228796716,0.1365,3722.0,3721.5,0.00330864]
[1760228796912,0.3561,3722.3,3721.8,0.0975]
[1760228797121,0.1399,3723.0,3721.5,0.00330864]
[1760228797122,0.48305,3722.6,3722.2,0.0975]
[1760228797420,0.979,3723.0,3722.2,0.0975]
[1760228797622,0.48302,3722.9,3722.5,0.0975]
[1760228797820,0.48306,3722.5,3721.9,0.48312]
[1760228798021,0.48304,3722.7,3722.1,0.4831]
[1760228798320,0.83915,3722.6,3722.0,0.48312]
[1760228798521,0.48302,3722.8,3722.2,0.0975]
[1760228798725,0.3561,3722.9,3722.2,0.0975]
[1760228798921,0.483,3723.0,3722.5,0.48305]
[1760228799124,0.48297,3723.2,3722.6,0.58053]
[1760228799326,0.1399,3723.5,3722.6,0.0975]
[1760228799622,0.1399,3723.5,3722.9,0.0975]
[1760228799623,0.48296,3723.3,3722.9,0.0975]
[1760228800019,0.83906,3723.3,3722.9,0.0975]
[1760228800223,0.48299,3723.1,3722.6,0.48304]
[1760228800423,0.48299,3723.1,3722.7,0.0975]
[1760228801021,0.3561,3722.9,3722.6,0.48304]
[1760228801223,0.3561,3723.4,3721.9,0.0975]
[1760228801421,0.48308,3722.3,3721.8,0.48314]
[1760228801821,0.48308,3722.3,3721.9,0.0975]
[1760228802221,0.48313,3721.9,3721.7,0.0975]
[1760228802824,0.48317,3721.7,3721.5,0.00330864]
[1760228803224,0.3352,3721.6,3721.5,0.00330864]
[1760228805331,0.48317,3721.7,3721.5,0.00330864]
[1760228805631,1.20773,3722.3,3721.7,0.48315]
[1760228805632,0.48309,3722.3,3721.7,0.48315]
[1760228805837,0.48309,3722.3,3721.9,0.0974]
[1760228806023,0.48309,3722.3,3721.8,0.48314]
[1760228806228,0.48306,3722.5,3721.9,0.48313]
[1760228806541,0.48306,3722.5,3721.9,0.58053]
[1760228806925,0.48306,3722.5,3722.0,0.48312]
[1760228807135,0.48306,3722.5,3722.1,0.0974]
[1760228807631,0.48303,3722.7,3722.3,0.48308]
[1760228807827,0.48298,3723.1,3722.8,0.0974]
[1760228808025,0.48298,3723.1,3722.7,0.48303]
[1760228808728,0.48298,3723.1,3722.8,0.0974]
[1760228808928,0.1399,3723.5,3722.4,0.48306]
[1760228809233,0.1399,3723.5,3722.0,0.0974]
[1760228809234,0.81823,3722.8,3722.0,0.0974]
[1760228809428,0.81823,3722.8,3722.4,0.48306]
[1760228809628,0.81823,3722.8,3722.5,0.0974]
[1760228810031,0.81823,3722.8,3722.5,0.58045]
[1760228810334,0.3352,3722.8,3722.5,0.58045]
[1760228811427,0.48298,3723.1,3722.7,0.48303]
[1760228811832,0.00203263,3723.7,3721.9,1.20784]
[1760228811833,0.48295,3723.4,3722.5,0.0974]
[1760228812127,0.48296,3723.3,3722.6,0.0974]
[1760228812332,0.3352,3723.1,3722.8,0.48301]
[1760228812533,0.3352,3723.1,3722.8,0.58041]
[1760228812729,0.00203263,3723.7,3721.7,0.0974]
[1760228812730,0.48304,3722.7,3721.7,0.0974]
[1760228813738,0.48301,3722.9,3721.8,0.0974]
[1760228814233,0.3352,3723.0,3721.5,0.10070864]
[1760228814234,0.48305,3722.6,3722.4,0.0974]
[1760228814435,0.3352,3722.5,3722.1,0.5805]
[1760228814626,0.48308,3722.4,3721.5,0.10070864]
[1760228814827,0.48308,3722.4,3722.1,0.0974]
[1760228815030,0.48308,3722.4,3722.1,0.5805]
[1760228815235,0.81828,3722.4,3722.1,0.0974]
[1760228815440,0.3352,3722.7,3721.7,0.48315]
[1760228815640,1.20756,3722.8,3721.7,0.48315]
[1760228815841,0.3352,3722.0,3721.7,0.48315]
[1760228816538,0.3352,3722.2,3722.0,0.48311]
[1760228816935,0.3352,3722.2,3721.8,0.48314]
[1760228817140,0.3352,3722.2,3721.8,0.58054]
[1760228817330,0.1424,3722.5,3721.6,0.0974]
[1760228818043,0.483,3723.0,3722.5,0.48304]
[1760228818342,0.48301,3722.9,3722.6,0.0974]
[1760228818844,0.48301,3722.9,3722.6,0.58044]
[1760228819730,0.8182,3723.0,3722.6,0.0974]
[1760228819934,0.8182,3723.0,3722.6,0.58044]
[1760228820246,0.48301,3722.9,3722.6,0.0974]
[1760228820540,0.81821,3722.9,3722.6,0.0974]
[1760228820740,0.3352,3722.9,3722.6,0.58043]
[1760228821144,0.81821,3722.9,3722.6,0.58043]
[1760228822949,0.81821,3722.9,3721.8,1.20788]
[1760228822950,0.3352,3722.7,3722.4,0.48306]
[1760228823145,0.4776,3722.5,3722.4,0.48306]
[1760228823846,0.3352,3722.5,3722.4,0.48306]
[1760228824047,0.3352,3722.5,3721.6,1.20794]
[1760228824352,0.3352,3722.5,3721.5,0.00330864]
[1760228824353,0.3352,3722.2,3721.9,0.48312]
[1760228824549,0.48309,3722.3,3721.9,0.48313]
[1760228824744,0.3696,3722.2,3721.9,0.48313]
[1760228825049,0.3696,3721.7,3721.5,0.00330864]
[1760228825848,0.48315,3721.8,3721.5,0.00330864]
[1760228826052,0.62983,3722.0,3721.5,0.48648864]
[1760228826349,0.3696,3721.9,3721.5,0.48648864]
[1760228826548,0.62983,3722.0,3721.5,0.48648864]
[1760228826748,0.3696,3721.9,3721.5,0.00330864]
[1760228826950,0.48315,3721.8,3721.5,0.00330864]
[1760228827145,0.3696,3721.7,3721.5,0.00330864]
[1760228827352,0.3696,3721.6,3721.5,0.00330864]
[1760228828652,0.85274,3721.9,3721.6,0.0974]
[1760228828855,0.48314,3721.9,3721.6,0.0974]
[1760228829061,0.3696,3721.8,3721.5,0.10070864]
[1760228829350,0.48314,3721.9,3721.5,0.10070864]
[1760228829552,0.3696,3721.8,3721.5,0.10070864]
[1760228829747,0.1424,3722.5,3721.6,0.0974]
[1760228829950,0.48304,3722.7,3721.7,0.0974]
[1760228830147,0.3696,3722.6,3721.7,0.0974]
[1760228830348,0.1467,3722.5,3721.7,0.0974]
[1760228830548,0.3696,3722.4,3722.1,0.4831]
[1760228830749,0.3696,3722.4,3722.1,0.5805]
[1760228831149,0.48302,3722.8,3722.2,0.0974]
[1760228832255,0.48302,3722.8,3722.3,0.48308]
[1760228832757,0.3696,3722.7,3722.3,0.0974]
[1760228832958,0.3696,3722.7,3722.5,0.48305]
[1760228833554,0.1424,3723.5,3722.5,0.48305]
[1760228833555,0.3696,3724.1,3723.6,0.0974]
[1760228833852,0.3696,3724.1,3723.5,0.48292]
[1760228834052,0.3696,3724.1,3722.7,1.20758]
[1760228834053,0.48288,3723.9,3723.4,0.48293]
[1760228834259,0.3696,3723.6,3723.4,0.48293]
[1760228834656,0.48293,3723.5,3722.6,0.0974]
[1760228834960,0.62963,3723.5,3723.0,0.48298]
[1760228835458,0.1467,3723.5,3723.1,0.48297]
[1760228835756,0.3696,3723.4,3723.1,0.58037]
[1760228836060,0.3696,3723.4,3723.1,0.48297]
[1760228836260,0.3696,3723.4,3722.9,0.483]
[1760228836658,0.1467,3723.0,3722.8,0.48301]
[1760228836960,0.3696,3723.2,3722.9,0.5804]
[1760228837160,0.3696,3723.2,3722.1,1.20776]
[1760228837161,0.85453263,3723.7,3723.2,0.48296]
[1760228837456,0.3696,3723.5,3722.5,0.0974]
[1760228837760,0.5163,3723.5,3722.5,0.0974]
[1760228837958,0.1467,3723.5,3723.0,0.48298]
[1760228838158,0.3696,3723.4,3722.6,0.0974]
[1760228838358,0.3696,3723.4,3722.1,0.0974]
[1760228838559,0.48297,3723.2,3722.1,0.0974]
[1760228838758,0.1467,3723.0,3722.1,0.0974]
[1760228839158,0.3696,3722.9,3722.6,0.48304]
[1760228839357,0.6297,3723.0,3722.6,0.48304]
[1760228839757,0.85262,3722.8,3722.1,0.0974]
[1760228840057,0.5163,3723.0,3722.4,0.58047]
[1760228840258,0.483,3723.0,3722.5,0.0974]
[1760228840560,0.483,3723.0,3722.4,0.48307]
[1760228840752,0.3696,3722.9,3722.6,0.0974]
[1760228841653,0.3696,3723.4,3722.7,0.0974]
[1760228842057,0.8526,3723.0,3722.7,0.0974]
[1760228842256,0.3696,3722.8,3721.8,0.0974]
[1760228842656,0.3696,3722.8,3722.5,0.48305]
[1760228842957,0.3696,3722.8,3722.5,0.58045]
[1760228843362,0.48301,3722.9,3722.5,0.58045]
[1760228843566,0.3696,3722.7,3722.5,0.0974]
[1760228843759,0.48305,3722.6,3721.5,1.21126864]
[1760228843960,0.48305,3722.6,3721.6,0.0974]
[1760228844159,0.48303,3722.8,3722.4,0.48306]
[1760228844357,0.48303,3722.8,3722.5,0.0974]
[1760228844657,0.85263,3722.8,3722.5,0.0974]
[1760228844962,0.3696,3722.7,3722.4,0.48306]
[1760228845465,0.48303,3722.8,3722.4,0.48306]
[1760228845662,0.1467,3723.0,3722.0,0.48311]
[1760228845663,0.3696,3722.3,3722.0,0.48311]
[1760228845866,0.3696,3722.1,3721.8,0.48314]
[1760228846067,0.3696,3722.0,3721.8,0.48314]
[1760228846559,1.3542,3723.0,3721.9,5.0]
[1760228846560,0.1467,3723.0,3721.9,5.0]
[1760228846761,0.3696,3723.1,3722.7,0.48302]
[1760228846953,0.3696,3723.1,3722.9,0.0974]
[1760228847663,0.3696,3723.4,3723.2,0.48296]
[1760228847863,0.48292,3723.6,3723.2,0.48296]
[1760228848163,0.3696,3723.4,3723.0,0.48298]
[1760228848465,0.48295,3723.4,3723.0,0.48298]
[1760228848654,0.3696,3723.2,3723.0,0.48298]
[1760228848860,0.3696,3723.3,3723.0,0.48298]
[1760228849056,0.3696,3723.1,3722.8,0.0974]
[1760228849355,0.3696,3723.6,3722.4,0.0974]
[1760228849561,0.62951,3724.5,3723.6,0.58031]
[1760228849758,0.1467,3724.5,3723.6,0.58031]
[1760228849957,0.3696,3724.7,3724.3,0.48282]
[1760228850165,0.85235,3724.9,3724.3,0.58022]
[1760228850460,0.48278,3724.7,3724.3,0.0974]
[1760228850766,0.48278,3724.7,3724.1,0.48284]
[1760228850967,0.85486182,3724.7,3724.1,0.48613591]
[1760228851462,0.37208182,3724.7,3724.1,0.00329591]
[1760228851664,0.85244,3724.2,3724.1,0.00329591]
[1760228851972,0.48294,3723.4,3722.8,0.48301]
[1760228852670,0.85257,3723.2,3722.6,0.48304]
[1760228852970,0.3696,3723.2,3722.6,0.00217124]
[1760228853371,0.483,3723.0,3722.6,0.00217124]
[1760228853565,0.3696,3722.9,3722.6,0.00217124]
[1760228854069,0.3696,3723.4,3722.7,0.0974]
[1760228854262,0.48296,3723.3,3722.7,0.58043]
[1760228854464,0.85257,3723.2,3722.8,0.0974]
[1760228854868,0.3626,3723.1,3722.8,0.0974]
[1760228855064,0.3626,3723.1,3722.7,0.48303]
[1760228855267,0.84563,3722.7,3722.6,0.00217124]
[1760228855763,0.84572,3722.1,3721.5,0.0971]
[1760228856163,0.48314,3721.9,3721.4,0.48319]
[1760228856473,0.84574,3721.9,3721.5,0.0971]
[1760228856662,0.36602324,3721.9,3721.6,0.0971]
[1760228856969,0.36602324,3721.9,3721.5,0.00273733]
[1760228856970,0.3626,3721.8,3721.5,0.00273733]
[1760228857272,0.48656324,3721.9,3721.5,0.00273733]
[1760228857273,0.48316,3721.7,3721.5,0.00273733]
[1760228857474,0.3626,3721.6,3721.5,0.00273733]
[1760228858276,0.3626,3721.8,3721.5,0.00273733]
[1760228858569,0.48656324,3721.9,3721.5,0.00273733]
[1760228859171,0.3626,3721.8,3721.5,0.00273733]
[1760228859564,0.00342324,3721.9,3721.5,0.00273733]
[1760228859774,0.3626,3721.6,3721.5,0.00273733]
[1760228860676,0.144,3721.5,3720.7,0.0971]
[1760228860875,0.144,3721.5,3720.0,0.0971]
[1760228860876,0.144,3721.5,3720.4,0.48332]
[1760228861173,0.48325,3721.0,3720.4,0.48332]
[1760228861774,0.62345,3721.0,3720.4,0.48549563]
[1760228862971,0.3391,3720.9,3720.5,0.48331]
[1760228863168,0.1402,3721.0,3720.5,0.48331]
[1760228863369,0.3391,3720.5,3720.4,0.00217563]
[1760228863574,0.4793,3720.5,3720.4,0.00217563]
[1760228866569,5.4793,3720.5,3720.4,0.00217563]
[1760228867074,0.4793,3720.5,3720.4,0.00217563]
[1760228867879,0.4831,3721.5,3720.4,5.09937563]
[1760228868079,0.4831,3721.5,3721.0,0.48325]
[1760228868279,0.4831,3721.5,3721.1,0.0972]
[1760228868678,0.3391,3721.6,3721.3,0.0972]
[1760228869076,0.48656324,3721.9,3721.5,0.48318]
[1760228869383,0.82566324,3721.9,3721.5,0.58038]
[1760228869875,0.82225,3721.8,3721.5,0.0972]
[1760228870082,0.3391,3721.8,3721.5,0.0972]
[1760228870382,0.48656324,3721.9,3721.6,0.0972]
[1760228870882,0.48656324,3721.9,3721.8,0.0972]
[1760228870883,0.00342324,3721.9,3721.8,0.0972]
[1760228871977,0.48301,3722.9,3722.4,0.48307]
[1760228872177,0.3391,3722.9,3722.5,0.0972]
[1760228872479,0.3391,3722.9,3722.2,0.58029]
[1760228872677,0.62327,3722.5,3721.9,0.48312]
[1760228872979,0.3391,3723.3,3722.9,0.0972]
[1760228873186,0.48297,3723.2,3722.6,0.0972]
[1760228873886,0.82211,3722.9,3721.1,0.0972]